Cogmind - Beta 15 @@@ ROGUE MODE // 2025.05.30 @ 18:54:27 Player: GiggleBox Result: Destroyed by 20-1ND(R) with Subdweller Machine Gun Performance ------------- Evolutions (0) 0 Regions Visited (3) 600 Robots Destroyed (26) 130 Value Destroyed (593) 593 Prototype IDs (0) 0 Alien Tech Used (0) 0 Bonus (0) 0 TOTAL SCORE: 1323 Bonus ------- None Cogmind --------- Core Integrity 0/250 Matter 220/300 Energy 100/100 System Corruption 0% Temperature Cool (0) Movement Treading (160) Location -10/Subcaves Parts ------- > --- POWER (1) -------- (None) > --- PROPULSION (2) --- Light Treads Light Treads > --- UTILITY (2) ------ Small Storage Unit Light Armor Plating > --- WEAPON (2) ------- Battle Rifle Subdweller Machine Gun > --- INVENTORY (8) ---- Wheel Wheel Improved Heat Sink Experimental Sensor Array Seismic Detector Particle Gun Assault Rifle Peak State ------------ > --- POWER ------------ Light Nuclear Core > --- PROPULSION ------- Light Treads Light Treads > --- UTILITY ---------- Small Storage Unit Seismic Detector > --- WEAPON ----------- Particle Gun Battle Rifle > --- INVENTORY -------- Light Treads Wheel Wheel Improved Heat Sink Structural Scanner Experimental Sensor Array Light Armor Plating Tractor Beam [Rating: 12] Favorites ----------- Power Light Nuclear Core Engine Light Ion Engine Power Core Light Nuclear Core Propulsion Light Treads Treads Light Treads Leg Aluminum Leg Wheel Wheel Utility Small Storage Unit Device Seismic Detector Storage Small Storage Unit Protection Light Armor Plating Weapon Assault Rifle Energy Gun Particle Gun Ballistic Gun Assault Rifle Build | -11 -10 -10 -10 ------- Run | Yrd Mat Min Sub Slots Evolved . | . . . . Power . | . . . . Propulsion . | . . . . Utility . | . . . . Weapon . | . . . . Parts Attached 23 | 7 6 6 4 Power 3 | 1 1 1 . Engine 2 | 1 1 . . Core 1 | . . 1 . Reactor . | . . . . Propulsion 9 | 2 2 4 1 Treads 5 | 2 . 2 1 Leg 2 | . . 2 . Wheel 2 | . 2 . . Hover . | . . . . Flight . | . . . . Utility 4 | 2 . 1 1 Device 1 | 1 . . . Storage 2 | 1 . 1 . Processor . | . . . . Hackware . | . . . . Protection 1 | . . . 1 Artifact . | . . . . Weapon 7 | 2 3 . 2 Energy Gun 2 | . 2 . . Energy Cannon . | . . . . Ballistic Gun 5 | 2 1 . 2 Ballistic Cannon . | . . . . Launcher . | . . . . Special Weapon . | . . . . Impact Weapon . | . . . . Slashing Weapon . | . . . . Piercing Weapon . | . . . . Special Melee Weapon . | . . . . Unidentified Prototypes . | . . . . Parts Lost 8 | . 5 1 2 Power 3 | . 2 . 1 Propulsion 2 | . 1 . 1 Utility . | . . . . Weapon 3 | . 2 1 . Highest Loss Streak 3 | . 3 1 1 To Critical Strikes . | . . . . Average Backups 6 | 3 6 7 7 Power . | . . . . Propulsion 2 | 1 1 3 2 Utility 2 | . 1 3 3 Weapon 1 | . 2 . 1 Tool/Special . | . . . . Unused Backups 6 | . . 2 4 Power . | . . . . Propulsion 2 | . . 2 . Utility 4 | . . . 4 Weapon . | . . . . Tool/Special . | . . . . Average Slot Usage (%) 96 | . 97 99 95 Engine 3 | . 12 . . Core 7 | . . 13 9 Treads 24 | . 24 21 28 Wheel 2 | . 3 3 . Device 12 | . 14 14 11 Storage 14 | . 14 14 14 Protection 1 | . . . 2 Energy Gun 10 | . 8 13 10 Ballistic Gun 16 | . 18 14 17 Peak Build Rating 12 | 7 8 11 12 Average Rating 9 | 5 6 10 10 On Entrance 6 | . 7 6 11 Naked Turns . | . . . . Heaviest Build 18 | 13 13 16 18 Greatest Support 40 | 40 40 40 40 Greatest Overweight (x) 1 | 1 . . . Average Overweight (x) . | . . . . Largest Inventory Capacity 8 | 8 8 8 8 Average Capacity 7 | 7 8 8 8 Most Carried 8 | 4 8 8 8 Average Carried 6 | 3 6 7 7 Final Capacity 8 | 8 8 8 8 Final Carried 8 | 4 5 8 7 Class Distribution -------------------- 57% | Scavenger-Mutant 42% | Mutant Dominant Class ---------------- Mutant | -10/Materials Scavenger-Mutant | -10/Mines Scavenger-Mutant | -10/Subcaves Resources | -11 -10 -10 -10 ----------- Run | Yrd Mat Min Sub Matter Collected 794 | 363 211 164 56 Remotely . | . . . . Salvage Created 934 | 157 456 173 148 Parts 51 | 10 25 10 6 Haulers Intercepted . | . . . . Recyclers Shooed 3 | 1 1 1 . Parts Field Recycled . | . . . . Retrieved Matter . | . . . . Parts Self-Destructed . | . . . . Prevented . | . . . . Kills | -11 -10 -10 -10 ------- Run | Yrd Mat Min Sub Combat Hostiles Destroyed 15 | . 9 2 4 Guns 15 | . 9 2 4 Classes Destroyed 8 | 2 5 . 1 Worker 1 | . 1 . . Builder 1 | . 1 . . Tunneler 5 | 5 . . . Recycler 3 | 1 1 1 . Watcher 1 | . 1 . . Swarmer 3 | . 3 . . Grunt 8 | . 6 2 . Subdweller 4 | . . . 4 Best Kill Streak 3 | 2 3 3 1 Combat Bots Only 3 | . 3 2 1 Max Kills in Single Turn 1 | 1 1 1 1 Gunslinging . | . . . . Exploded . | . . . . Melee . | . . . . Uniques/NPCs Destroyed . | . . . . Combat | -11 -10 -10 -10 -------- Run | Yrd Mat Min Sub Hostile Shots Fired 126 | . 82 7 37 Missed 39 | . 21 2 16 Hits 87 | . 61 5 21 Projectile 87 | . 61 5 21 Damage Taken 1301 | . 776 77 448 Core 261 | . 127 . 134 Absorbed by Shields . | . . . . Core Remaining (%) 100 | 100 . . . Volleys Fired 96 | 17 50 7 22 Largest 2 | 2 2 2 2 Hottest 90 | 40 85 85 90 Shots Fired 190 | 34 99 13 44 Gun 190 | 34 99 13 44 Cannon . | . . . . Launcher . | . . . . Special . | . . . . Kinetic 149 | 34 74 10 31 Thermal 22 | . 6 3 13 Explosive . | . . . . Electromagnetic 19 | . 19 . . Robot Hit Streak 14 | 5 9 11 14 Robot Miss Streak 3 | 3 3 1 1 Penetration Max . | . . . . Secondary Targets 4 | . 3 1 . Max Gunslinging Chain 1 | . 1 1 . Shots Hit Robots 127 | 20 60 12 35 Core Hits 40 | 5 20 7 8 Critical Kills . | . . . . Critical Parts Destroyed . | . . . . Critical Strikes 1 | . . . 1 Burn 1 | . . . 1 Melee Attacks . | . . . . Impact . | . . . . Slashing . | . . . . Piercing . | . . . . Sneak Attacks . | . . . . Combat Hostiles . | . . . . Follow-up Attacks . | . . . . Damage Inflicted 1814 | 249 842 162 561 Guns 1763 | 243 797 162 561 Cannons . | . . . . Explosions 44 | . 44 . . Melee . | . . . . Ramming 7 | 6 1 . . Kinetic 1348 | 243 566 131 408 Thermal 240 | . 56 31 153 Explosive 44 | . 44 . . Electromagnetic 175 | . 175 . . Impact . | . . . . Slashing . | . . . . Piercing . | . . . . Highest Corruption . | . . . . Average Corruption . | . . . . Corruption Purged . | . . . . Corruption Blocked . | . . . . Overload Shots . | . . . . Overflow Damage 35 | . 35 . . Projectiles . | . . . . Explosions 35 | . 35 . . Melee . | . . . . Knockbacks . | . . . . Impact . | . . . . Kinetic . | . . . . Secondary . | . . . . Self-Inflicted Damage 111 | . 111 . . Shots 1 | . 1 . . Rammed 3 | 2 1 . . Targets Rammed 4 | 3 1 . . Kicked . | . . . . Crushed 1 | 1 . . . Highest Temperature 195 | . 195 60 20 Average Temperature 68 | . 80 27 12 Received Heat Transfer 408 | . 336 42 30 Siege Activations . | . . . . Martial Activations . | . . . . Shielding Activations . | . . . . Robots Disrupted 1 | . 1 . . Combat Hostiles 1 | . 1 . . Robots Corrupted . | . . . . Combat Hostiles . | . . . . Parts Fried . | . . . . Impact Corruptions . | . . . . Robots Melted . | . . . . Combat Hostiles . | . . . . Parts Melted . | . . . . Heat Transferred 666 | . 148 74 444 Parts Sabotaged . | . . . . Parts Stolen . | . . . . Parts Stripped . | . . . . Power Chain Reactions . | . . . . Alert | -11 -10 -10 -10 ------- Run | Yrd Mat Min Sub Maximum Alert Level . | . . . . Low Security (%) 100 | 100 100 100 . Level 1 . | . . . . Level 2 . | . . . . Level 3 . | . . . . Level 4 . | . . . . Level 5 . | . . . . High Security . | . . . . Max Security . | . . . . Peak Influence 139 | 5 139 86 . Initial 46 | . 3 46 . Average 26 | . 44 19 . Influence Increases 442 | 30 357 55 . Destroy 0b10 Robot/C 220 | . 180 40 . Destroy 0b10 Robot/NC 55 | 30 20 5 . Destroy Leader 52 | . 42 10 . Successful Hack 11 | . 11 . . Disable Machine 45 | . 45 . . Destroy Structure 29 | . 29 . . Lose Combat Pursuer 30 | . 30 . . Influence Decreases 442 | 25 242 175 . Entered New Map 76 | . 2 74 . Time Decay 306 | 25 190 91 . Lost Part 60 | . 50 10 . Squads Dispatched 2 | . 2 . . Investigation 1 | . 1 . . Extermination . | . . . . Reinforcement 1 | . 1 . . Assault . | . . . . Garrison . | . . . . Intercept . | . . . . Searches Triggered . | . . . . Construction Impeded . | . . . . Haulers Reinforced . | . . . . Active Scanning Responses . | . . . . Cargo Convoy Interrupts . | . . . . Stealth | -11 -10 -10 -10 --------- Run | Yrd Mat Min Sub Distress Signals . | . . . . Communications Jammed . | . . . . Distress Signals . | . . . . Times Spotted 25 | . 16 4 5 Peak Tracking Total 3 | . 3 2 2 Tactical Retreats 1 | . 1 . . Traps | -11 -10 -10 -10 ------- Run | Yrd Mat Min Sub Traps Triggered . | . . . . Indirectly . | . . . . Trap Hack Attempts . | . . . . Triggered . | . . . . Disarmed . | . . . . Reprogrammed . | . . . . Reused . | . . . . Traps Extracted . | . . . . Installed . | . . . . Triggered . | . . . . Machines | -11 -10 -10 -10 ---------- Run | Yrd Mat Min Sub Machines Disabled 3 | . 3 . . Max in Single Turn 1 | . 1 . . Machines Repaired . | . . . . Machines Dismantled . | . . . . Machines Sabotaged . | . . . . Overloaded Fab Kills . | . . . . Hacking | -11 -10 -10 -10 --------- Run | Yrd Mat Min Sub Machines Accessed 4 | . 3 . 1 Terminals 3 | . 3 . . Fabricators . | . . . . Repair Stations . | . . . . Recycling Units . | . . . . Scanalyzers . | . . . . Garrison Access . | . . . . Total Hacks 23 | . 19 . 4 Successful 16 | . 12 . 4 Failed 7 | . 7 . . Catastrophic 1 | . 1 . . Database Lockouts . | . . . . Manual 10 | . 10 . . Terminals 19 | . 19 . . Fabricators . | . . . . Repair Stations . | . . . . Recycling Units . | . . . . Scanalyzers . | . . . . Garrison Access . | . . . . Terminal Hacks 10 | . 6 . 4 Record 7 | . 3 . 4 Branch Access Points 1 | . 1 . . Locate Traps 1 | . 1 . . Security Status 1 | . 1 . . Fabricator Hacks . | . . . . Repair Station Hacks . | . . . . Recycling Unit Hacks . | . . . . Scanalyzer . | . . . . Garrison Access Hacks . | . . . . Unauthorized Hacks 6 | . 6 . . Terminals 6 | . 6 . . Botnet 2 | . 2 . . Operators 1 | . 1 . . Skim 3 | . 3 . . Fabricators . | . . . . Repair Stations . | . . . . Recycling Units . | . . . . Scanalyzers . | . . . . Garrison Access . | . . . . Data Cores Recovered . | . . . . Used . | . . . . Hacking Detections 3 | . 3 . . Full Trace Events . | . . . . Feedback Events . | . . . . Feedback Blocked . | . . . . Robot Schematics Acquired . | . . . . Robots Built . | . . . . Authchips . | . . . . Time . | . . . . Total Robot Build Rating . | . . . . Part Schematics Acquired . | . . . . Parts Built . | . . . . Authchips . | . . . . Time . | . . . . Total Part Build Rating . | . . . . Parts Repaired . | . . . . Time . | . . . . Parts Recycled . | . . . . Recycled Matter . | . . . . Retrieved Matter . | . . . . Retrieved Components . | . . . . Parts Scanalyzed . | . . . . Part Schematics Acquired . | . . . . Parts Damaged . | . . . . Bothacking | -11 -10 -10 -10 ------------ Run | Yrd Mat Min Sub Used RIF Installer . | . . . . Robots Hacked . | . . . . Non-combat . | . . . . Combat . | . . . . Robot Hacks Applied . | . . . . Relay Couplers Released . | . . . . Fabnet Peak Effective % . | . . . . Robots Rewired 1 | . 1 . . Allies Hacked . | . . . . Hacks Repelled . | . . . . Allies | -11 -10 -10 -10 -------- Run | Yrd Mat Min Sub Total Allies 1 | . 1 . . Largest Group 1 | . 1 . . Highest-Rated Group 16 | . 16 . . Highest-Rated Ally 16 | . 16 . . Total Orders . | . . . . Ally Attacks 3 | . 3 . . Total Damage 32 | . 32 . . Kills . | . . . . Allies Corrupted . | . . . . Allies Melted . | . . . . Intel | -11 -10 -10 -10 ------- Run | Yrd Mat Min Sub Active Infowar (turns) 1585 | 32 560 440 553 Seismic 1585 | 32 560 440 553 Robot Analysis Total . | . . . . Derelict Logs Recovered 2 | . . 2 . Drone Launches . | . . . . Drone Recoveries . | . . . . Exploration | -11 -10 -10 -10 ------------- Run | Yrd Mat Min Sub Turns Passed 1947 | 253 560 440 694 Spaces Moved 993 | 114 249 251 379 Core 8 | 8 . . . Treads 905 | 106 226 194 379 Legs 46 | . . 46 . Wheels 34 | . 23 11 . Hover . | . . . . Flight . | . . . . Fastest Speed 50 | 50 80 80 160 Average Speed 154 | 154 152 149 160 Slowest Speed 160 | 160 160 160 160 Overloaded Moves . | . . . . Propulsion Burnouts . | . . . . Robots Hopped . | . . . . Potential Cave-ins . | . . . . Cave-ins Triggered . | . . . . Exploration Rate (%) 29 | 7 42 50 20 Regions Visited 3 Branch Regions 2 Pre-discovered Areas 1 | . . . 1 Known Exits Taken 1 | . 1 . . Unknown Exits Taken 2 | 1 . 1 . Scrap Searched . | . . . . Spaces Dug . | . . . . Terrain Destroyed 51 | . 51 . . Melee . | . . . . Projectile . | . . . . AOE 51 | . 51 . . Terrain Rammed . | . . . . Walls Destroyed . | . . . . Machines Disabled . | . . . . Actions | -11 -10 -10 -10 --------- Run | Yrd Mat Min Sub Total 1207 | 152 327 303 425 Wait 62 | 8 15 26 13 Move 990 | 113 248 250 379 Hop . | . . . . Pick Up 18 | 4 5 7 2 Fast Attach 8 | 7 . 1 . Attach 6 | . 4 1 1 Detach . | . . . . Swap 14 | . 3 6 5 Drop 8 | . . 5 3 Fire 96 | 17 50 7 22 Melee . | . . . . Ram . | . . . . Kick . | . . . . Crush 4 | 3 1 . . Escape Stasis . | . . . . Rewire 1 | . 1 . . Trap . | . . . . Miscellaneous . | . . . . Route ------- -11/Scrapyard -10/Materials (discovered 3 exits: [*Mat] / *Min x2) -10/Mines (discovered 2 exits: [*Mat] / *Sub) -10/Subcaves History --------- Turn | Location | Event 6 | -11/Scrapyard | Discovered new exit (range 16) 254 | -11/Scrapyard | Entered Materials 312 | -10/Materials | Build established: Mutant 396 | -10/Materials | Discovered new exit (range 8) 563 | -10/Materials | Identified exit to Mines 729 | -10/Materials | Lost 3 parts (1p1n1w) 742 | -10/Materials | Core integrity fell below 50% 754 | -10/Materials | Derelicts attacked the area 814 | -10/Materials | Entered Mines 873 | -10/Mines | Discovered new exit (range 16) 886 | -10/Mines | Learned 4 Materials zone layouts 903 | -10/Mines | Joined a pair of Derelicts in attacking an 0b10 outpost 1018 | -10/Mines | Learned Materials stockpile data 1119 | -10/Mines | Build established: Scavenger-Mutant 1138 | -10/Mines | Found a damaged Exp. Sensor Array with a note attached 1141 | -10/Mines | Found Prototype Device 1248 | -10/Mines | Discovered new exit (range 5) 1254 | -10/Mines | Entered Subcaves 1499 | -10/Subcaves | Visited Clippyterm 1504 | -10/Subcaves | Learned location of Section 7 (-2) 1504 | -10/Subcaves | Learned Factory emergency access door positions 1934 | -10/Subcaves | Core integrity fell below 20% 1948 | -10/Subcaves | Destroyed by 20-1ND(R) with Subdweller Machine Gun Last Messages --------------- It looks like you're trying to take over the world, would you like help? World map updated: -2/Section 7. >>Record! "Hide-and-Seek" It looks like you're trying to avoid detection, would you like help? Data stored: Factory emergency access points. >>Record! "Tab" It looks like you're biased against spaces, I think you need more help than I can offer. 01709_ AZ-2C2(R) destroyed. 01710_ Subatomizers dissect the Sub. Machine Gun. 01712_ Acquired 25 matter. 01716_ Dropped Structural Scanner. 01716_ Acquired Sub. Machine Gun. 01734_ Lgt. Nuclear Core destroyed. 01734_ DT-1JC(R) destroyed. 01737_ Acquired 3 matter. 01748_ Subatomizers dissect the Sub. Optics. 01935_ Lgt. Treads destroyed. 01937_ 9P-AGO(R) destroyed. 01946_ 20-1ND(R) affixes Scrap Shield Fragment to Scrap Shield. Map ----- +----------------------------------------------------+ | ??????????????????### #???# #????? | | ????????????????????## #???## ## ??? | | ?????????????????????#####????## " # | | ???????????????????????????????## "" ## #? | | ???????????????????####?????????## ""##? ##? | | ???????????????????# ##?????????### "##?? ##?? | | ????????????????????# ##?????###### ""## #??? | | ????????????????????## ##???## """ " #??? | | ?????????????????????## #???# "" " ?#??? | | ?????????????????####?# #??## ### " #??? | | ?????????????????# ### #?## #?### " " #??? | | ?????????????????# ## #?# ###?? " "??? | | ?????????????????# ### ## " ???? | | ?????????????????# """""" "???? | | ?????????????????# """""" "???? | | ?????????????????### ## ## ""##"" "???? | | ???????????????????# ## ##?? ""?????????? | | ???????????????????## #????""?????????? | | ????????????????????## #????? ?????????? | | ????????????????????## #???????????????? | | ????????????????????# #???????????????? | | ????????????????????## #???????????????? | | ?????????????????????## ##???????????????? | | ?????????????????????## ####????????????????? | | ?????? ????????#### ###???????????????????? | | ????? ????# @##?????????????????????? | | ????? # !R##??????????????????????? | | ?????????# #???????????????????????? | | ??????????# #???????????????????????? | | ??????????# # #???????????????????????? | | ?????????# ####### #???????????????????????? | | ?????????# ###???????# #???????????????????????? | | ????????# ????????????# #??????????????????????? | | ??????????????????????# ?????????????????????? | | ??????????????????????## ????????????????????? | | ????????????????????????# # #???????????????????? | | ?????????????????????????## ???????????????????? | | ???????????????????????????? ??????????????????? | | ???????????????????????????? ?????????????????? | | ?????????????????????????????????????????????????? | | ?????????????????????????????????????????????????? | | ?????????????????????????????????????????????????? | | ?????????????????????????????????????????????????? | | ?????????????????????????????????????????????????? | | ?????????????????????????????????????????????????? | | ?????????????????????????????????????????????????? | | ?????????????????????????????????????????????????? | | ?????????????????????????????????????????????????? | | ?????????????????????????????????????????????????? | | ?????????????????????????????????????????????????? | +----------------------------------------------------+ Best States ------------- Heat Dissipation 25 Energy Generation 14 Energy Capacity 160 Matter Stores 300 Matter Capacity 300 Sight Range 16 Terrain Scan Density 10 Armor Coverage 150 Evasion (%) 50 Recoil Reduction 2 Item Schematics ----------------- None Robot Schematics ------------------ None Fabricated ------------ Nothing Repaired ---------- Nothing Alien Tech Used ----------------- None Achievements -------------- None Challenges ------------ None Game ------ Seed ChromaticPointPropulsion Manual? 0 Play Time 00:16:22 Cumulative 117.7 hours Start 2025.05.30 @ 18:41:37 End 2025.05.30 @ 18:54:27 Sessions 1 Manual Loads 0 Difficulty Rogue Special Mode None Game No. 120 Rogue 120 Adventurer 0 Explorer 0 Win Type - Total 1 Types 1/0/0/0/0/0/0/0/0/0 Lore% 65 Gallery% 58 Achievement% 49 Wizard Run 0 Options --------- Layout 0 ASCII 0 Keyboard 1 Movement Numpad Keybinds 0 Fullscreen 1 Font 24/Terminus Map View 76x50 Zoom Use 0% Tactical HUD 1 Map Filters NONE Filters NONE Steam 1 RUN: 9500fd36-1adc-4a95-a077-f38f1f053810